bitfinex/quotes_BTCUSD_20240826
["timestamp","ask_amount","ask_price","bid_price","bid_amount"]
[1724685492023,0.00947501,63319.0,63318.0,0.473797]
[1724685492231,0.00947501,63319.0,63318.0,1.06884001]
[1724685492436,0.00947501,63319.0,63318.0,1.70057001]
[1724685492637,0.00947501,63319.0,63318.0,1.70246776]
[1724685493072,0.0628,63340.0,63329.0,0.789527]
[1724685493473,0.536437,63340.0,63329.0,0.789527]
[1724685493746,0.0628,63340.0,63329.0,1.105338]
[1724685494400,0.00906401,63342.0,63329.0,1.565149]
[1724685494614,0.00906401,63342.0,63338.0,1.21525355]
[1724685494825,0.00906401,63342.0,63338.0,2.10296356]
[1724685495043,0.00906401,63342.0,63338.0,2.17435446]
[1724685495253,0.00906401,63342.0,63338.0,2.49391596]
[1724685495471,0.00906401,63342.0,63338.0,2.17814996]
[1724685495921,0.00906401,63342.0,63341.0,1.421879]
[1724685496135,0.00906401,63342.0,63341.0,1.84425701]
[1724685496340,0.00906401,63342.0,63341.0,1.93409003]
[1724685498256,0.00406401,63349.0,63348.0,1.84296055]
[1724685498501,0.00406401,63349.0,63348.0,1.80642256]
[1724685499151,0.00406401,63349.0,63348.0,1.87052256]
[1724685499368,0.00406401,63349.0,63348.0,2.23462946]
[1724685499588,0.00406401,63349.0,63348.0,1.92976813]
[1724685499767,0.00406401,63349.0,63348.0,2.24548413]
[1724685500865,0.00406401,63349.0,63348.0,0.9366809]
[1724685501078,0.00406401,63349.0,63348.0,0.6209649]
[1724685501498,0.00406401,63349.0,63348.0,1.2523969]
[1724685502754,0.00406401,63349.0,63348.0,1.2753969]
[1724685502965,0.00406401,63349.0,63348.0,0.3052489]
[1724685503174,0.00406401,63349.0,63348.0,0.2052489]
[1724685503386,0.00406401,63349.0,63348.0,0.0473909]
[1724685503583,0.00406401,63349.0,63348.0,0.2052489]
[1724685503845,0.0627,63348.0,63327.0,0.0798]
[1724685504057,0.0627,63348.0,63331.0,0.315798]
[1724685504058,0.157885,63337.0,63331.0,0.315798]
[1724685504290,0.0753,63346.0,63338.0,0.315765]
[1724685504498,0.0753,63346.0,63321.0,0.0798]
[1724685504499,0.23147801,63346.0,63336.0,0.157886]
[1724685504704,0.23147801,63346.0,63337.0,0.0157886]
[1724685504705,0.157883,63338.0,63337.0,0.0157886]
[1724685504918,0.315763,63339.0,63329.0,0.315809]
[1724685505124,0.315767,63338.0,63321.0,0.09065848]
[1724685505337,0.15617801,63339.0,63329.0,0.315809]
[1724685505562,0.0753,63343.0,63321.0,0.09065848]
[1724685505563,0.0627,63334.0,63330.0,0.157901]
[1724685505780,0.0627,63334.0,63331.0,0.2052719]
[1724685506213,0.220593,63334.0,63331.0,0.0473719]
[1724685506423,0.0627,63334.0,63331.0,0.2052699]
[1724685507023,0.0627,63334.0,63331.0,0.0473719]
[1724685507024,0.157898,63332.0,63331.0,0.0473719]
[1724685507231,0.157901,63331.0,63326.0,0.157911]
[1724685507445,0.157903,63330.0,63324.0,0.473747]
[1724685507662,0.15617801,63329.0,63324.0,0.157915]
[1724685507869,0.157908,63328.0,63324.0,0.157915]
[1724685508113,0.157908,63328.0,63314.0,0.01040099]
[1724685508114,0.15617801,63328.0,63325.0,0.0157915]
[1724685508327,0.15617801,63328.0,63314.0,0.01040099]
[1724685508559,0.15617801,63328.0,63327.0,0.473731]
[1724685508776,0.15617801,63328.0,63324.0,0.315835]
[1724685508991,0.0758,63333.0,63319.0,0.00315814]
[1724685509198,0.0627,63334.0,63323.0,0.076]
[1724685509413,0.0627,63334.0,63333.0,0.473686]
[1724685509621,0.0627,63334.0,63333.0,0.8684263]
[1724685509865,0.0758,63339.0,63338.0,0.157883]
[1724685510076,0.0656,63341.0,63340.0,0.157878]
[1724685510284,0.4692,63356.0,63333.0,0.0789493]
[1724685510285,0.0656,63350.0,63333.0,0.0789493]
[1724685510491,0.0656,63350.0,63348.0,0.78929]
[1724685510701,0.0775,63356.0,63348.0,1.16328062]
[1724685510916,0.1386,63356.0,63348.0,1.16328062]
[1724685511353,0.0004,63359.0,63348.0,1.16328062]
[1724685511566,0.0004,63359.0,63348.0,1.24388062]
[1724685512435,0.0004,63359.0,63348.0,1.16328062]
[1724685513946,0.0004,63359.0,63348.0,0.84756462]
[1724685514150,0.0806,63350.0,63348.0,0.21613262]
[1724685514361,0.22134202,63349.0,63348.0,0.05827462]
[1724685514573,0.37919702,63349.0,63348.0,0.05827462]
[1724685514781,0.53705302,63349.0,63339.0,0.315757]
[1724685514998,0.15617801,63348.0,63333.0,0.315789]
[1724685515208,0.15617801,63348.0,63334.0,0.157892]
[1724685515209,0.157884,63338.0,63334.0,0.157892]
[1724685515423,0.315739,63344.0,63322.0,0.0803]
[1724685515424,0.315739,63344.0,63325.0,0.947481]
[1724685515671,0.157891,63335.0,63326.0,0.01055772]
[1724685515906,0.078,63339.0,63331.0,0.157899]
[1724685515907,0.15617801,63334.0,63331.0,0.157899]
[1724685516118,0.15617801,63334.0,63332.0,0.157897]
[1724685516556,0.15617801,63334.0,63333.0,0.157895]
[1724685516967,0.15617801,63334.0,63333.0,0.473686]
[1724685517185,0.078,63339.0,63337.0,0.157884]
[1724685517400,0.15617801,63338.0,63337.0,0.157884]
[1724685517658,0.15617801,63338.0,63335.0,0.157888]
[1724685517878,0.15617801,63338.0,63334.0,0.315785]
[1724685518084,0.15617801,63338.0,63336.0,0.157887]
[1724685518295,0.15617801,63338.0,63337.0,0.05526203]
[1724685518707,0.15617801,63338.0,63337.0,0.21314703]
[1724685518937,0.38087701,63349.0,63337.0,0.05526203]
[1724685518938,0.0781,63348.0,63337.0,0.05526203]
[1724685519141,0.15617801,63347.0,63341.0,0.315748]
[1724685519549,0.15617801,63347.0,63344.0,0.157867]
[1724685519770,0.15617801,63347.0,63333.0,0.010907]
[1724685519771,0.0781,63348.0,63339.0,0.315758]
[1724685519975,0.0781,63348.0,63338.0,0.315765]
[1724685520183,0.15617801,63347.0,63346.0,0.157863]
[1724685520386,0.15617801,63347.0,63346.0,0.0157863]
[1724685520793,0.31403801,63347.0,63346.0,0.0157863]
[1724685521057,0.31403801,63347.0,63335.0,0.000824]
[1724685521058,0.15617801,63347.0,63335.0,0.000824]
[1724685521477,0.157883,63338.0,63335.0,0.000824]
[1724685521679,0.15617801,63337.0,63335.0,0.000824]
[1724685522094,0.15617801,63337.0,63335.0,0.158713]
[1724685522305,0.15617801,63337.0,63336.0,0.0474504]
[1724685523122,0.31406301,63337.0,63336.0,0.0474504]
[1724685523328,0.15617801,63337.0,63335.0,0.000824]
[1724685523742,0.15617801,63337.0,63335.0,0.158713]
[1724685524182,0.15617801,63337.0,63336.0,0.157888]
[1724685524812,0.15617801,63337.0,63336.0,0.473664]
[1724685525003,0.15617801,63341.0,63337.0,0.315768]
[1724685525239,0.15617801,63341.0,63338.0,0.0632372]
[1724685525481,0.31405301,63341.0,63338.0,0.0632372]
[1724685525695,0.315763,63339.0,63335.0,0.000824]
[1724685525895,0.0828,63346.0,63335.0,0.000824]
[1724685525896,0.15617801,63338.0,63335.0,0.000824]
[1724685526309,0.31406201,63338.0,63335.0,0.000824]
[1724685526507,0.31406201,63338.0,63335.0,0.158713]
[1724685526508,0.15617801,63338.0,63335.0,0.158713]
[1724685526721,0.31406101,63338.0,63336.0,0.0474508]
[1724685526945,0.294488,63336.0,63335.0,0.000824]
[1724685527195,0.45066601,63336.0,63335.0,0.000824]
[1724685527460,1.08221801,63336.0,63335.0,0.000824]
[1724685527658,1.39799401,63336.0,63335.0,0.000824]
[1724685528221,1.71377001,63336.0,63335.0,0.000824]
[1724685528420,1.81477001,63336.0,63335.0,0.000824]
[1724685529007,1.49899401,63336.0,63335.0,0.000824]
[1724685529614,1.18221801,63336.0,63335.0,0.000824]
[1724685530512,1.49799401,63336.0,63335.0,0.000824]
[1724685531143,1.81477001,63336.0,63335.0,0.000824]
[1724685531342,0.066,63313.0,63308.0,0.157955]
[1724685531550,0.223946,63313.0,63312.0,0.46876099]
[1724685531751,0.157948,63312.0,63309.0,0.0473886]
[1724685532131,0.066,63313.0,63309.0,0.0473886]
[1724685532132,0.473857,63310.0,63309.0,0.0473886]
[1724685532338,0.315918,63308.0,63303.0,0.15797]
[1724685532538,0.157967,63305.0,63301.0,0.157974]
[1724685532734,0.157967,63305.0,63302.0,0.157972]
[1724685532895,0.15617801,63305.0,63304.0,0.157967]
[1724685533104,0.15617801,63305.0,63304.0,0.473902]
[1724685533309,0.15617801,63305.0,63304.0,0.157967]
[1724685533513,0.15617801,63305.0,63304.0,0.2369532]
[1724685533958,0.066,63313.0,63304.0,0.0789862]
[1724685534158,0.15617801,63312.0,63309.0,0.157954]
[1724685534361,0.15617801,63312.0,63303.0,0.31594]
[1724685534562,0.15617801,63312.0,63308.0,0.31591]
[1724685534765,0.15617801,63312.0,63310.0,0.157951]
[1724685535377,0.15617801,63312.0,63308.0,0.157957]
[1724685535523,0.31412601,63312.0,63309.0,0.2053423]
[1724685535725,0.15795,63311.0,63309.0,0.0473883]
[1724685535930,0.15617801,63310.0,63309.0,0.0473883]
[1724685536545,0.15617801,63310.0,63309.0,0.2053433]
[1724685536953,0.15617801,63310.0,63309.0,0.5212533]
[1724685537149,0.15617801,63310.0,63309.0,0.2053433]
[1724685537811,0.15617801,63310.0,63309.0,0.0473883]
[1724685538267,0.15617801,63310.0,63309.0,0.2053433]
[1724685538813,0.15617801,63310.0,63309.0,0.0473883]
[1724685539166,0.63003501,63310.0,63309.0,0.0473883]
[1724685539343,0.157955,63309.0,63304.0,0.315934]
[1724685539549,0.15617801,63308.0,63305.0,0.157964]
[1724685539757,0.15617801,63308.0,63301.0,0.315949]
[1724685539967,0.15617801,63308.0,63304.0,0.157965]
[1724685540168,0.15617801,63308.0,63303.0,0.15797]
[1724685540169,0.157961,63307.0,63303.0,0.15797]
[1724685540410,0.15617801,63306.0,63304.0,0.2369546]
[1724685540613,0.31414101,63306.0,63301.0,0.315949]
[1724685540820,0.31414101,63306.0,63303.0,0.157968]
[1724685541244,0.15617801,63306.0,63298.0,0.315964]
[1724685541470,0.157977,63300.0,63299.0,0.06427051]
[1724685541701,0.157985,63298.0,63294.0,0.15799]
[1724685541911,0.157991,63295.0,63290.0,0.316005]
[1724685542119,0.15617801,63294.0,63291.0,0.0397029]
[1724685542327,0.1427,63305.0,63292.0,0.315995]
[1724685542556,0.15617801,63304.0,63296.0,0.396273]
[1724685542756,0.31414701,63304.0,63297.0,0.03994324]
[1724685542965,0.15617801,63304.0,63301.0,0.157974]
[1724685543269,0.15617801,63304.0,63302.0,0.157972]
[1724685543477,0.15617801,63304.0,63303.0,0.15797]
[1724685543684,0.006,63306.0,63305.0,0.473895]
[1724685543907,0.006,63306.0,63305.0,0.8372145]
[1724685544349,0.07014746,63319.0,63317.0,0.157935]
[1724685544557,0.20294298,63318.0,63317.0,0.157935]
[1724685544836,0.20294298,63318.0,63313.0,0.157944]
[1724685544837,0.157936,63317.0,63313.0,0.157944]
[1724685545044,0.15617801,63316.0,63314.0,0.157942]
[1724685545256,0.15617801,63316.0,63315.0,0.0473836]
[1724685545684,0.15617801,63316.0,63315.0,0.5212036]
[1724685545894,0.15617801,63316.0,63315.0,0.2053236]
[1724685546301,0.15617801,63316.0,63315.0,0.5212036]
[1724685547339,0.5692,63329.0,63318.0,0.315865]
[1724685547545,0.5692,63329.0,63326.0,0.157912]
[1724685547546,0.15617801,63327.0,63326.0,0.157912]
[1724685547750,0.15617801,63327.0,63326.0,0.473738]
[1724685548157,0.15617801,63327.0,63325.0,0.315831]
[1724685548367,0.4692,63329.0,63328.0,0.157908]
[1724685548574,0.0638,63336.0,63328.0,0.157908]
[1724685548575,0.0638,63336.0,63330.0,0.315804]
[1724685548782,0.15617801,63335.0,63331.0,0.315798]
[1724685548991,0.15617801,63335.0,63334.0,0.473679]
[1724685549205,0.15617801,63335.0,63334.0,0.157893]
[1724685549415,0.15617801,63335.0,63334.0,0.473679]
[1724685549621,0.15617801,63335.0,63334.0,0.5210787]
[1724685550261,0.15617801,63335.0,63334.0,0.8368647]
[1724685550470,0.15617801,63335.0,63334.0,0.2052927]
[1724685550685,0.15617801,63335.0,63328.0,0.0473734]
[1724685550892,0.15617801,63335.0,63323.0,0.01081958]
[1724685551092,0.15617801,63335.0,63334.0,0.157893]
[1724685551299,0.15617801,63335.0,63334.0,0.473679]
[1724685551503,0.4701064,63341.0,63331.0,0.315797]
[1724685551710,0.4701064,63341.0,63340.0,0.157878]
[1724685551711,0.15708441,63341.0,63340.0,0.157878]
[1724685551919,0.0009064,63341.0,63340.0,0.4894218]
[1724685552334,0.15708441,63341.0,63340.0,0.1736658]
[1724685552537,0.15708441,63341.0,63340.0,0.0157878]
[1724685552949,0.17108441,63341.0,63340.0,0.0157878]
[1724685553155,0.18508441,63341.0,63340.0,0.0157878]
[1724685554003,0.18508441,63341.0,63340.0,0.1736658]
[1724685554417,0.17108441,63341.0,63340.0,0.4894218]
[1724685554633,0.17108441,63341.0,63318.0,0.4716]
[1724685554847,0.061,63339.0,63320.0,0.0798]
[1724685555061,0.315793,63333.0,63318.0,0.4716]
[1724685555268,0.34563855,63340.0,63318.0,0.4716]
[1724685555269,0.061,63322.0,63319.0,0.0867282]
[1724685555476,0.15617801,63322.0,63319.0,0.0867282]
[1724685555706,0.15617801,63322.0,63320.0,0.157927]
[1724685555922,0.15617801,63322.0,63317.0,0.157935]
[1724685556139,0.15617801,63322.0,63314.0,0.01051458]
[1724685556351,0.15617801,63322.0,63321.0,0.157925]
[1724685556560,0.15617801,63322.0,63321.0,0.1737175]
[1724685556974,0.15617801,63322.0,63321.0,0.0157925]
[1724685557190,0.15617801,63322.0,63289.0,0.001]
[1724685557393,0.157939,63316.0,63308.0,0.315915]
[1724685557620,0.23727801,63321.0,63302.0,0.395742]
[1724685557621,0.315886,63314.0,63302.0,0.0798]
[1724685557835,0.29637801,63313.0,63305.0,0.0080624]
[1724685558051,0.157949,63312.0,63305.0,0.157963]
[1724685558261,0.29637801,63313.0,63305.0,0.157963]
[1724685558262,0.31412901,63311.0,63305.0,0.157963]
[1724685558697,0.31412901,63311.0,63301.0,0.157975]
[1724685558698,0.157959,63308.0,63301.0,0.157975]
[1724685558919,0.15617801,63307.0,63304.0,0.0482997]
[1724685559137,0.15617801,63307.0,63305.0,0.157963]
[1724685559379,0.014,63314.0,63308.0,0.0807]
[1724685559593,0.4692,63318.0,63317.0,0.473805]
[1724685559806,0.62667999,63324.0,63317.0,0.0789695]
[1724685560006,0.31409801,63323.0,63317.0,0.157934]
[1724685560215,0.785015,63329.0,63309.0,0.0633]
[1724685560216,0.4692,63329.0,63314.0,0.0031586]
[1724685560424,0.4692,63329.0,63309.0,0.0633]
[1724685560425,0.157911,63327.0,63319.0,0.315859]
[1724685560661,0.15617801,63326.0,63321.0,0.157924]
[1724685561711,0.15617801,63326.0,63312.0,0.315892]
[1724685561927,0.014,63324.0,63313.0,0.08180697]
[1724685562152,0.15617801,63323.0,63322.0,0.15792]
[1724685562363,0.15617801,63323.0,63322.0,0.473765]
[1724685562565,0.014,63324.0,63323.0,0.473761]
[1724685562788,0.014,63324.0,63323.0,0.2133361]
[1724685563456,0.028,63326.0,63325.0,0.157915]
[1724685563660,0.18417801,63326.0,63325.0,0.157915]
[1724685564516,0.014,63326.0,63325.0,0.473746]
[1724685564731,0.014,63326.0,63325.0,0.789577]
[1724685564955,0.014,63326.0,63325.0,0.87138482]
[1724685565165,0.0009064,63335.0,63325.0,0.08180782]
[1724685565392,0.15708441,63335.0,63331.0,0.315798]
[1724685565608,0.0009064,63335.0,63334.0,0.473679]
[1724685566457,0.0009064,63335.0,63334.0,0.789465]
[1724685566690,0.0009064,63335.0,63334.0,1.215777]
[1724685566691,0.0149064,63335.0,63334.0,1.215777]
[1724685567175,0.0009064,63335.0,63334.0,1.215777]
[1724685568139,0.0149064,63335.0,63334.0,0.899991]
[1724685568541,0.0009064,63335.0,63334.0,0.899991]
[1724685569099,0.0009064,63335.0,63334.0,0.110526]
[1724685569100,0.0169064,63335.0,63334.0,0.110526]
[1724685569326,0.0069064,63335.0,63333.0,0.157895]
[1724685569530,0.224094,63334.0,63328.0,0.157906]
[1724685569760,0.0662,63334.0,63329.0,0.157904]
[1724685569967,0.0662,63334.0,63330.0,0.157902]
[1724685570174,0.0662,63334.0,63331.0,0.0789535]
[1724685570175,0.06600997,63334.0,63331.0,0.0789535]
[1724685570306,0.06600997,63334.0,63331.0,0.2368525]
[1724685570735,0.06800997,63334.0,63331.0,0.2368525]
[1724685571164,0.002,63334.0,63333.0,0.157895]
[1724685571771,0.002,63334.0,63331.0,0.2368515]
[1724685571927,0.002,63334.0,63330.0,0.315801]
[1724685571928,0.002,63334.0,63332.0,0.05827042]
[1724685572130,0.007,63334.0,63333.0,0.157895]
[1724685572333,0.005,63334.0,63333.0,0.157895]
[1724685572535,0.0009064,63335.0,63333.0,0.07835778]
[1724685572742,0.15708441,63335.0,63332.0,0.05827042]
[1724685572967,0.005,63334.0,63326.0,0.315822]
[1724685573157,0.162894,63334.0,63325.0,0.01067756]
[1724685573359,0.005,63334.0,63324.0,0.391035]
[1724685573573,0.005,63334.0,63324.0,0.0752]
[1724685574002,0.007,63334.0,63333.0,0.473686]
[1724685574222,0.0009064,63335.0,63334.0,0.473679]
[1724685574660,0.0069064,63335.0,63334.0,1.105251]
[1724685574899,0.0069064,63335.0,63334.0,1.18771252]
[1724685575098,0.0009064,63335.0,63334.0,1.18771252]
[1724685575517,0.0069064,63335.0,63334.0,1.18771252]
[1724685575902,0.0009064,63335.0,63334.0,1.18771252]
[1724685576332,0.0009064,63335.0,63334.0,1.19071252]
[1724685576628,0.0009064,63335.0,63334.0,1.20157385]
[1724685577090,0.0009064,63335.0,63334.0,1.51735985]
[1724685577273,0.0009064,63335.0,63334.0,1.22457385]
[1724685578414,0.0009064,63335.0,63334.0,0.87492652]
[1724685578864,0.0009064,63335.0,63334.0,0.08546152]
[1724685579066,0.0009064,63335.0,63334.0,0.003]
[1724685579507,0.0009064,63335.0,63334.0,0.160893]
[1724685579748,0.0009064,63335.0,63334.0,0.003]
[1724685580156,0.0009064,63335.0,63334.0,0.001]
[1724685580587,0.15708441,63335.0,63334.0,0.001]
[1724685580797,0.15708441,63335.0,63326.0,0.157911]
[1724685580798,0.157898,63332.0,63326.0,0.157911]
[1724685581014,0.157908,63328.0,63327.0,0.0989586]
[1724685581224,0.157914,63326.0,63321.0,0.000824]
[1724685581639,0.157917,63325.0,63321.0,0.000824]
[1724685581868,0.157912,63327.0,63321.0,0.000824]
[1724685582071,0.47199401,63328.0,63321.0,0.000824]
[1724685582072,0.157913,63326.0,63322.0,0.0316686]
[1724685582299,0.157917,63325.0,63322.0,0.0316686]
[1724685582508,0.157918,63324.0,63322.0,0.0316686]
[1724685582723,0.15792,63323.0,63322.0,0.0316686]
[1724685582924,0.473767,63322.0,63321.0,0.000824]
[1724685583137,0.15617801,63322.0,63321.0,0.000824]
[1724685583765,0.31410001,63322.0,63321.0,0.000824]
[1724685584401,0.15817801,63322.0,63321.0,0.000824]
[1724685584599,0.31610001,63322.0,63321.0,0.0166997]
[1724685585013,0.31610001,63322.0,63321.0,0.000824]
[1724685585226,0.32110001,63322.0,63321.0,0.000824]
[1724685585872,0.16317801,63322.0,63321.0,0.000824]
[1724685586341,0.63694501,63322.0,63321.0,0.000824]
[1724685586913,0.32110001,63322.0,63321.0,0.000824]
[1724685587315,0.16317801,63322.0,63321.0,0.000824]
[1724685587678,0.16317801,63322.0,63321.0,0.0482861]
[1724685588076,0.007,63322.0,63321.0,0.158749]
[1724685588298,0.007,63322.0,63321.0,0.000824]
[1724685588498,0.007,63322.0,63321.0,0.158749]
[1724685588799,0.007,63322.0,63321.0,0.000824]
[1724685589501,0.007,63322.0,63321.0,0.474599]
[1724685589701,0.007,63322.0,63321.0,0.92058125]
[1724685589930,0.007,63322.0,63321.0,1.23643125]
[1724685590659,0.007,63322.0,63321.0,1.30193125]
[1724685592913,0.007,63322.0,63321.0,1.64078125]
[1724685593990,0.007,63322.0,63321.0,1.30193125]
[1724685594196,0.007,63322.0,63321.0,1.23643125]
[1724685595058,0.007,63322.0,63321.0,1.25943125]
[1724685596546,0.007,63322.0,63321.0,1.23643125]
[1724685596772,0.007,63322.0,63321.0,0.92058125]
[1724685597211,0.007,63322.0,63321.0,1.23643125]
[1724685598244,0.007,63322.0,63321.0,1.25943125]
[1724685599736,0.00679871,63322.0,63321.0,1.25943125]
[1724685601885,0.00679871,63322.0,63321.0,1.57528125]
[1724685602679,0.00679871,63322.0,63321.0,1.79885926]
[1724685602880,0.00679871,63322.0,63321.0,1.92198488]
[1724685603181,0.00679871,63322.0,63321.0,2.23783488]
[1724685603398,0.00179871,63322.0,63321.0,2.23783488]
[1724685603601,0.00679871,63322.0,63321.0,2.22063964]
[1724685604223,0.0009064,63334.0,63327.0,0.001]
[1724685604445,0.0009064,63334.0,63333.0,1.187668]
[1724685604661,0.0009064,63334.0,63333.0,1.29905967]
[1724685605325,0.0009064,63334.0,63333.0,1.19365967]
[1724685605527,0.0009064,63334.0,63333.0,1.21665967]
[1724685606173,0.0009064,63334.0,63333.0,1.83332868]
[1724685606389,0.00406401,63349.0,63341.0,0.1447]
[1724685606593,0.00406401,63349.0,63348.0,1.420722]
[1724685606801,0.00406401,63349.0,63348.0,1.65750001]
[1724685607021,0.00906401,63368.0,63364.0,1.104726]
[1724685607258,0.0001799,63369.0,63368.0,1.14671459]
[1724685607465,0.0001799,63369.0,63368.0,2.11131429]
[1724685607680,0.0001799,63369.0,63368.0,2.45105768]
[1724685607892,0.0001799,63369.0,63368.0,2.15262507]
[1724685608100,0.0001799,63369.0,63368.0,2.17973722]
[1724685608315,0.0001799,63369.0,63368.0,2.56053068]
[1724685609269,0.0011799,63369.0,63368.0,2.57253068]
[1724685609480,0.0001799,63369.0,63368.0,2.56053068]
[1724685609908,0.0011799,63369.0,63368.0,2.57353068]
[1724685610122,0.0011799,63369.0,63368.0,2.58453068]
[1724685610344,0.0011799,63369.0,63368.0,2.26891468]
[1724685610781,0.0011799,63369.0,63368.0,2.24073129]
[1724685611205,0.0001799,63369.0,63368.0,2.25391396]
[1724685611414,0.0001799,63369.0,63368.0,2.55234729]
[1724685611663,0.0011799,63369.0,63368.0,2.25073129]
[1724685611915,0.0001799,63369.0,63368.0,2.23673129]
[1724685612192,0.0011799,63369.0,63368.0,2.56534729]
[1724685612627,0.0001799,63369.0,63368.0,2.55234729]
[1724685612850,0.0011799,63369.0,63368.0,2.25073129]
[1724685613055,0.0011799,63369.0,63368.0,2.22773129]
[1724685615801,0.0011799,63369.0,63368.0,2.25073129]
[1724685616219,0.0011799,63369.0,63368.0,1.84622747]
[1724685616449,0.0011799,63369.0,63368.0,2.19073129]
[1724685617113,0.0011799,63369.0,63368.0,2.56934729]
[1724685617316,0.0011799,63369.0,63368.0,2.25373129]
[1724685617754,0.0004,63379.0,63378.0,1.500447]
[1724685618005,0.0004,63379.0,63378.0,2.2116004]
[1724685618210,0.00036,63379.0,63378.0,2.2106004]
[1724685618425,0.00036,63379.0,63378.0,2.2116004]
[1724685618655,0.00036,63379.0,63378.0,1.86609658]
[1724685618867,0.00036,63379.0,63378.0,1.47113058]
[1724685619096,0.00036,63379.0,63378.0,1.29195257]
[1724685619743,0.00036,63379.0,63378.0,0.97638657]
[1724685620375,0.00036,63379.0,63378.0,1.29195257]
[1724685621678,0.00036,63379.0,63378.0,1.19195257]
[1724685621882,0.00036,63379.0,63378.0,0.87638657]
[1724685622495,0.08096,63379.0,63378.0,0.08747157]
[1724685622722,0.08096,63379.0,63377.0,0.157785]
[1724685622938,0.08096,63379.0,63378.0,0.157783]
[1724685623140,0.08096,63379.0,63373.0,0.31559]
[1724685623344,0.0815,63377.0,63376.0,0.473364]
[1724685623546,0.0815,63377.0,63376.0,0.157788]
[1724685623750,0.0815,63377.0,63376.0,0.5207009]
[1724685624131,0.0815,63377.0,63376.0,1.1518529]
[1724685624572,0.0815,63377.0,63376.0,0.8362769]
[1724685624784,0.23767801,63377.0,63368.0,0.181631]
[1724685624992,0.47175501,63376.0,63368.0,0.023824]
[1724685625194,0.157794,63374.0,63368.0,0.023824]
[1724685625408,0.157794,63374.0,63368.0,0.181631]
[1724685625409,0.15617801,63374.0,63368.0,0.181631]
[1724685625614,0.303105,63369.0,63368.0,0.036824]
[1724685625819,0.30147801,63369.0,63368.0,0.036824]
[1724685626030,0.30147801,63369.0,63368.0,0.009824]
[1724685626031,0.45728301,63369.0,63368.0,0.009824]
[1724685626237,0.77289401,63369.0,63368.0,0.009824]
[1724685626443,1.08850501,63369.0,63368.0,0.009824]
[1724685626663,1.40411601,63369.0,63368.0,0.009824]
[1724685627293,1.40411601,63369.0,63368.0,0.000824]
[1724685627696,1.40511601,63369.0,63368.0,0.011824]
[1724685628105,1.40411601,63369.0,63368.0,0.000824]
[1724685628658,1.41711601,63369.0,63368.0,0.001824]
[1724685628864,1.41711601,63369.0,63368.0,0.000824]
[1724685629225,1.43011601,63369.0,63368.0,0.001824]
[1724685629434,0.002,63368.0,63341.0,0.315747]
[1724685629640,0.0661,63357.0,63342.0,0.50033569]
[1724685629857,0.0661,63357.0,63342.0,0.0315747]
[1724685629858,0.23497801,63356.0,63342.0,0.0315747]
[1724685630079,0.39281701,63356.0,63333.0,0.548]
[1724685630281,0.39281701,63356.0,63348.0,0.157858]
[1724685630282,0.23497801,63356.0,63348.0,0.157858]
[1724685630537,0.315681,63355.0,63333.0,0.548]
[1724685630749,0.15617801,63354.0,63348.0,0.157857]
[1724685630945,0.15617801,63354.0,63346.0,0.315722]
[1724685631153,0.15617801,63354.0,63342.0,0.315744]
[1724685631154,0.15617801,63354.0,63348.0,0.315716]
[1724685631359,0.15617801,63354.0,63352.0,0.157847]
[1724685631564,0.15617801,63354.0,63348.0,0.157856]
[1724685631771,0.16759134,63353.0,63348.0,0.157856]
[1724685631981,0.32376935,63353.0,63348.0,0.157856]
[1724685632188,0.16592335,63353.0,63351.0,0.15785]
[1724685632392,0.16592335,63353.0,63350.0,0.157853]
[1724685632595,0.00974534,63353.0,63352.0,0.157848]
[1724685632800,0.0788,63356.0,63353.0,0.157844]
[1724685633009,0.0788,63356.0,63354.0,0.157843]
[1724685633218,0.0661,63357.0,63356.0,0.157838]
[1724685633422,0.22227801,63357.0,63352.0,0.05272256]
[1724685633628,0.15617801,63356.0,63348.0,0.000824]
[1724685633853,0.0769,63352.0,63348.0,0.000824]
[1724685634059,0.23307801,63352.0,63348.0,0.000824]
[1724685634480,0.23307801,63352.0,63351.0,0.15785]
[1724685634704,0.23307801,63352.0,63350.0,0.157853]
[1724685634902,0.23307801,63352.0,63351.0,0.0474402]
[1724685635326,0.24307801,63352.0,63351.0,0.0474402]
[1724685635556,0.24579242,63352.0,63351.0,0.0474402]
[1724685635958,0.25479242,63352.0,63351.0,0.0474402]
[1724685636549,0.25479242,63352.0,63348.0,0.001824]
[1724685636807,0.157854,63350.0,63348.0,0.001824]
[1724685636984,0.31403201,63350.0,63348.0,0.000824]
[1724685637193,0.6324359,63349.0,63348.0,0.000824]
[1724685637398,1.0847469,63349.0,63348.0,0.000824]
[1724685637605,0.7690359,63349.0,63348.0,0.000824]
[1724685637967,0.7690359,63349.0,63348.0,0.001824]
[1724685637968,1.0847469,63349.0,63348.0,0.001824]
[1724685638245,1.0847469,63349.0,63348.0,0.000824]
[1724685638394,1.4004579,63349.0,63348.0,0.000824]
[1724685638606,1.4004579,63349.0,63348.0,0.001824]
[1724685638607,1.7261689,63349.0,63348.0,0.001824]
[1724685638969,1.8261689,63349.0,63348.0,0.000824]
[1724685640264,1.8251689,63349.0,63348.0,0.001824]
[1724685640684,1.8251689,63349.0,63348.0,0.000824]
[1724685640685,1.8321689,63349.0,63348.0,0.000824]
[1724685641098,1.8461689,63349.0,63348.0,0.000824]
[1724685641339,1.8321689,63349.0,63348.0,0.000824]
[1724685641545,1.8551689,63349.0,63348.0,0.000824]
[1724685641748,1.8691689,63349.0,63348.0,0.000824]
[1724685641960,1.8691689,63349.0,63321.0,0.000824]
[1724685641961,0.616667,63322.0,63321.0,0.000824]
[1724685642132,0.29907801,63322.0,63321.0,0.000824]
[1724685642312,0.45960439,63322.0,63321.0,0.000824]
[1724685643085,1.09110446,63322.0,63321.0,0.000824]
[1724685643914,0.45941446,63322.0,63321.0,0.000824]
[1724685644431,1.09110446,63322.0,63321.0,0.000824]
[1724685644636,1.09110446,63322.0,63321.0,0.001824]
[1724685644637,0.79646491,63322.0,63321.0,0.001824]
[1724685644835,0.81046491,63322.0,63321.0,0.001824]
[1724685646860,0.49461991,63322.0,63321.0,0.001824]
[1724685647483,0.81046491,63322.0,63321.0,0.001824]
[1724685647691,1.12630991,63322.0,63321.0,0.001824]